[Event "Early-Titled-Tuesday-Blitz-March-26-2024"]
[Site "Chess.com"]
[Date "2024.03.26"]
[Round "1"]
[White "Masterbeaterr"]
[Black "CarlosjPineror"]
[Result "1-0"]
[WhiteElo "2448"]
[BlackElo "2766"]
[TimeControl "180+1"]
[EndTime "8:07:44 PDT"]
[Termination "Masterbeaterr won by checkmate"]

1. d4 {[%clk 0:03:00.9]} 1... Nf6 {[%clk 0:02:58.9]} 2. c4 {[%clk 0:03:00.9]}
2... d6 {[%clk 0:02:59.2]} 3. Nc3 {[%clk 0:02:59.7]} 3... e5 {[%clk 0:02:58.8]}
4. d5 {[%clk 0:02:56.7]} 4... Bf5 {[%clk 0:02:57.4]} 5. g3 {[%clk 0:02:55.7]}
5... e4 {[%clk 0:02:47]} 6. Bg2 {[%clk 0:02:54.2]} 6... h6 {[%clk 0:02:44.7]} 7.
Qb3 {[%clk 0:02:51.5]} 7... b6 {[%clk 0:02:41.3]} 8. Be3 {[%clk 0:02:50.9]} 8...
Nbd7 {[%clk 0:02:36.7]} 9. Bd4 {[%clk 0:02:47]} 9... Nc5 {[%clk 0:02:25.1]} 10.
Qd1 {[%clk 0:02:46.5]} 10... a5 {[%clk 0:02:22]} 11. Qd2 {[%clk 0:02:44.6]}
11... Qe7 {[%clk 0:02:18.9]} 12. h3 {[%clk 0:02:25.4]} 12... h5 {[%clk
0:02:04.7]} 13. Qf4 {[%clk 0:02:24.5]} 13... g6 {[%clk 0:01:51.4]} 14. Qg5
{[%clk 0:02:09.4]} 14... Bg7 {[%clk 0:01:47.7]} 15. g4 {[%clk 0:02:09]} 15...
Bd7 {[%clk 0:01:23.8]} 16. O-O-O {[%clk 0:01:42.8]} 16... O-O-O {[%clk
0:01:21.3]} 17. Kb1 {[%clk 0:01:40.2]} 17... Rde8 {[%clk 0:00:58.1]} 18. e3
{[%clk 0:01:37.3]} 18... Rh7 {[%clk 0:00:56.9]} 19. Nge2 {[%clk 0:01:35.9]}
19... Nxd5 {[%clk 0:00:56.2]} 20. Qxd5 {[%clk 0:01:26.2]} 20... c6 {[%clk
0:00:51]} 21. Bxc5 {[%clk 0:01:20.9]} 21... cxd5 {[%clk 0:00:47.1]} 22. Nxd5
{[%clk 0:01:21.8]} 22... Qe5 {[%clk 0:00:41]} 23. Bd4 {[%clk 0:01:20.6]} 23...
Qg5 {[%clk 0:00:34.8]} 24. Nxb6+ {[%clk 0:01:10.8]} 24... Kc7 {[%clk 0:00:34.5]}
25. Nd5+ {[%clk 0:01:10.7]} 25... Kb7 {[%clk 0:00:31.9]} 26. Nec3 {[%clk
0:00:51.8]} 26... f5 {[%clk 0:00:19.7]} 27. Bxg7 {[%clk 0:00:40.5]} 27... Rxg7
{[%clk 0:00:19.2]} 28. Nf4 {[%clk 0:00:38.4]} 28... Qe7 {[%clk 0:00:15]} 29.
Ncd5 {[%clk 0:00:37.2]} 29... Qe5 {[%clk 0:00:14]} 30. g5 {[%clk 0:00:35.2]}
30... Bc6 {[%clk 0:00:13.6]} 31. h4 {[%clk 0:00:32.4]} 31... Rb8 {[%clk
0:00:13.6]} 32. Rd2 {[%clk 0:00:31.8]} 32... Kc8 {[%clk 0:00:12.9]} 33. Rc1
{[%clk 0:00:28.7]} 33... Rgb7 {[%clk 0:00:12.8]} 34. Rcc2 {[%clk 0:00:28.3]}
34... Be8 {[%clk 0:00:12.4]} 35. Nf6 {[%clk 0:00:18.9]} 35... Bf7 {[%clk
0:00:11]} 36. N4d5 {[%clk 0:00:12.6]} 36... Kd8 {[%clk 0:00:09.7]} 37. c5 {[%clk
0:00:11.5]} 37... a4 {[%clk 0:00:09.7]} 38. c6 {[%clk 0:00:11.2]} 38... Ra7
{[%clk 0:00:09]} 39. c7+ {[%clk 0:00:11.5]} 39... Rxc7 {[%clk 0:00:09.4]} 40.
Rxc7 {[%clk 0:00:11.5]} 40... Bxd5 {[%clk 0:00:07.4]} 41. Nxd5 {[%clk 0:00:12]}
41... Qh2 {[%clk 0:00:05.9]} 42. Bf1 {[%clk 0:00:11.2]} 42... Qxh4 {[%clk
0:00:05.9]} 43. Rg7 {[%clk 0:00:08.8]} 43... Qh1 {[%clk 0:00:06.1]} 44. Rd1
{[%clk 0:00:08.2]} 44... Qf3 {[%clk 0:00:05.9]} 45. Rc1 {[%clk 0:00:08.5]} 45...
Rb5 {[%clk 0:00:05.1]} 46. Nf6 {[%clk 0:00:08.9]} 46... Qxf2 {[%clk 0:00:03.2]}
47. Rd7# {[%clk 0:00:08.9]} 1-0

[Event "Early-Titled-Tuesday-Blitz-March-26-2024"]
[Site "Chess.com"]
[Date "2024.03.26"]
[Round "1"]
[White "kriscacco"]
[Black "subham777"]
[Result "1/2-1/2"]
[WhiteElo "2159"]
[BlackElo "2580"]
[TimeControl "180+1"]
[EndTime "8:07:45 PDT"]
[Termination "Game drawn - insufficient material"]

1. d4 {[%clk 0:02:57.9]} 1... d5 {[%clk 0:02:59.2]} 2. Nf3 {[%clk 0:02:57.7]}
2... Nf6 {[%clk 0:02:58.9]} 3. c4 {[%clk 0:02:57.2]} 3... e6 {[%clk 0:02:58.4]}
4. Nc3 {[%clk 0:02:57.2]} 4... Be7 {[%clk 0:02:58.6]} 5. Bf4 {[%clk 0:02:56.9]}
5... O-O {[%clk 0:02:58.9]} 6. e3 {[%clk 0:02:57]} 6... Ne4 {[%clk 0:02:58.5]}
7. Nxe4 {[%clk 0:02:56.1]} 7... dxe4 {[%clk 0:02:58.6]} 8. Nd2 {[%clk
0:02:56.1]} 8... f5 {[%clk 0:02:58.4]} 9. f3 {[%clk 0:02:53.2]} 9... exf3 {[%clk
0:02:55.3]} 10. Qxf3 {[%clk 0:02:50.8]} 10... c5 {[%clk 0:02:50.5]} 11. Nb3
{[%clk 0:02:46.6]} 11... cxd4 {[%clk 0:02:47.6]} 12. exd4 {[%clk 0:02:42.4]}
12... Bb4+ {[%clk 0:02:45.3]} 13. Bd2 {[%clk 0:02:41.9]} 13... Bxd2+ {[%clk
0:02:45]} 14. Kxd2 {[%clk 0:02:41.7]} 14... Nc6 {[%clk 0:02:44.7]} 15. Kc3
{[%clk 0:02:41.2]} 15... a5 {[%clk 0:02:43.5]} 16. d5 {[%clk 0:02:35.8]} 16...
Qf6+ {[%clk 0:02:41.2]} 17. Kc2 {[%clk 0:02:30.2]} 17... exd5 {[%clk 0:02:35.4]}
18. cxd5 {[%clk 0:02:21.1]} 18... Nb4+ {[%clk 0:02:19.2]} 19. Kb1 {[%clk
0:02:16.4]} 19... a4 {[%clk 0:02:16]} 20. Nc1 {[%clk 0:02:11.1]} 20... a3 {[%clk
0:02:12.2]} 21. bxa3 {[%clk 0:02:09.3]} 21... Na6 {[%clk 0:02:08.5]} 22. Nb3
{[%clk 0:02:04.9]} 22... Nc7 {[%clk 0:02:02]} 23. Be2 {[%clk 0:01:56.3]} 23...
Rxa3 {[%clk 0:01:55.3]} 24. Rd1 {[%clk 0:01:55.2]} 24... Bd7 {[%clk 0:01:50]}
25. Qf4 {[%clk 0:01:43.1]} 25... Nb5 {[%clk 0:01:42.2]} 26. Bxb5 {[%clk
0:01:40.6]} 26... Bxb5 {[%clk 0:01:40.9]} 27. Qb4 {[%clk 0:01:39.3]} 27... Qa6
{[%clk 0:01:17.4]} 28. Nc5 {[%clk 0:01:29.1]} 28... Qa5 {[%clk 0:01:06.8]} 29.
Qxa5 {[%clk 0:01:28.5]} 29... Rxa5 {[%clk 0:01:07.7]} 30. Nb3 {[%clk 0:01:25.6]}
30... Raa8 {[%clk 0:01:02.6]} 31. Kb2 {[%clk 0:01:24.9]} 31... Bc4 {[%clk
0:01:01.5]} 32. Rd4 {[%clk 0:01:22.7]} 32... b5 {[%clk 0:00:58.7]} 33. Nd2
{[%clk 0:01:19]} 33... Rfc8 {[%clk 0:00:44.2]} 34. Nxc4 {[%clk 0:01:18]} 34...
bxc4 {[%clk 0:00:40.6]} 35. Rc1 {[%clk 0:01:17.8]} 35... Ra4 {[%clk 0:00:34.1]}
36. Rc3 {[%clk 0:01:08.1]} 36... Rca8 {[%clk 0:00:29.7]} 37. a3 {[%clk
0:01:07.2]} 37... Rb8+ {[%clk 0:00:27.9]} 38. Kc2 {[%clk 0:01:07.3]} 38... Rc8
{[%clk 0:00:26]} 39. d6 {[%clk 0:01:06.9]} 39... Ra7 {[%clk 0:00:24.3]} 40.
Rcxc4 {[%clk 0:01:01.3]} 40... Rd8 {[%clk 0:00:18.7]} 41. a4 {[%clk 0:00:58.3]}
41... Ra6 {[%clk 0:00:16.7]} 42. d7 {[%clk 0:00:57.3]} 42... Kf7 {[%clk
0:00:16]} 43. Rc8 {[%clk 0:00:54.9]} 43... Ke7 {[%clk 0:00:14.6]} 44. Rxd8
{[%clk 0:00:52.6]} 44... Kxd8 {[%clk 0:00:15.5]} 45. Kd3 {[%clk 0:00:52.5]}
45... g5 {[%clk 0:00:14.1]} 46. Kc3 {[%clk 0:00:49.6]} 46... f4 {[%clk
0:00:11.2]} 47. Kb4 {[%clk 0:00:47]} 47... Ra7 {[%clk 0:00:11.3]} 48. Rd5 {[%clk
0:00:42.1]} 48... h6 {[%clk 0:00:09.6]} 49. h4 {[%clk 0:00:41.2]} 49... Rxd7
{[%clk 0:00:08.8]} 50. Rxd7+ {[%clk 0:00:38.5]} 50... Kxd7 {[%clk 0:00:09.7]}
51. hxg5 {[%clk 0:00:38.5]} 51... hxg5 {[%clk 0:00:09.6]} 52. Kc4 {[%clk
0:00:38.9]} 52... g4 {[%clk 0:00:09.6]} 53. Kd4 {[%clk 0:00:39.1]} 53... Kc6
{[%clk 0:00:08]} 54. Ke4 {[%clk 0:00:38.9]} 54... f3 {[%clk 0:00:07.9]} 55. gxf3
{[%clk 0:00:39.2]} 55... gxf3 {[%clk 0:00:08.3]} 56. Kxf3 {[%clk 0:00:39.3]}
56... Kb6 {[%clk 0:00:09.1]} 57. a5+ {[%clk 0:00:39]} 57... Kxa5 {[%clk
0:00:10]} 1/2-1/2

[Event "Early-Titled-Tuesday-Blitz-March-26-2024"]
[Site "Chess.com"]
[Date "2024.03.26"]
[Round "1"]
[White "emeli_chess"]
[Black "Mysterio47"]
[Result "0-1"]
[WhiteElo "2384"]
[BlackElo "2711"]
[TimeControl "180+1"]
[EndTime "8:07:47 PDT"]
[Termination "Mysterio47 won by resignation"]

1. d4 {[%clk 0:03:00.9]} 1... Nf6 {[%clk 0:02:59.6]} 2. c4 {[%clk 0:03:00.6]}
2... g6 {[%clk 0:02:59.5]} 3. Nc3 {[%clk 0:03:00.5]} 3... Bg7 {[%clk 0:02:59.2]}
4. e4 {[%clk 0:03:00.5]} 4... d6 {[%clk 0:02:56.4]} 5. f3 {[%clk 0:03:00.4]}
5... O-O {[%clk 0:02:56.5]} 6. Be3 {[%clk 0:03:01]} 6... c5 {[%clk 0:02:57]} 7.
Nge2 {[%clk 0:03:00.2]} 7... Nc6 {[%clk 0:02:56.8]} 8. d5 {[%clk 0:03:00.7]}
8... Ne5 {[%clk 0:02:57.4]} 9. Ng3 {[%clk 0:03:01.3]} 9... e6 {[%clk 0:02:58]}
10. Be2 {[%clk 0:03:00.4]} 10... exd5 {[%clk 0:02:58.3]} 11. cxd5 {[%clk
0:02:58]} 11... a6 {[%clk 0:02:58.5]} 12. a4 {[%clk 0:02:57.5]} 12... h5 {[%clk
0:02:56.6]} 13. O-O {[%clk 0:02:56.5]} 13... h4 {[%clk 0:02:57]} 14. Nh1 {[%clk
0:02:56.8]} 14... Nh7 {[%clk 0:02:56.5]} 15. Nf2 {[%clk 0:02:52.9]} 15... f5
{[%clk 0:02:45.8]} 16. f4 {[%clk 0:02:52.1]} 16... Nf7 {[%clk 0:02:44.3]} 17. h3
{[%clk 0:02:14.4]} 17... Nf6 {[%clk 0:02:41.2]} 18. Bf3 {[%clk 0:02:03.3]} 18...
Re8 {[%clk 0:02:39.3]} 19. Re1 {[%clk 0:01:54.7]} 19... fxe4 {[%clk 0:02:34.5]}
20. Nfxe4 {[%clk 0:01:51.7]} 20... Bf5 {[%clk 0:02:32.4]} 21. Bf2 {[%clk
0:01:30.1]} 21... Nxe4 {[%clk 0:02:15.7]} 22. Nxe4 {[%clk 0:01:18.5]} 22... Rb8
{[%clk 0:01:49.6]} 23. b3 {[%clk 0:01:04]} 23... Bxa1 {[%clk 0:01:03]} 24. Qxa1
{[%clk 0:01:03]} 24... Bxe4 {[%clk 0:01:03.7]} 25. Bxe4 {[%clk 0:01:02.6]} 25...
Nh8 {[%clk 0:01:01.3]} 26. f5 {[%clk 0:00:48.9]} 26... g5 {[%clk 0:00:53]} 27.
f6 {[%clk 0:00:46.5]} 27... Nf7 {[%clk 0:00:51.3]} 28. Bf5 {[%clk 0:00:45.5]}
28... Re5 {[%clk 0:00:27.9]} 29. Be6 {[%clk 0:00:41.8]} 29... Qxf6 {[%clk
0:00:24.7]} 30. Rf1 {[%clk 0:00:37.9]} 30... Rxe6 {[%clk 0:00:18.2]} 31. dxe6
{[%clk 0:00:36]} 31... Qxe6 {[%clk 0:00:18.6]} 32. Qd1 {[%clk 0:00:28.1]} 32...
Re8 {[%clk 0:00:18.6]} 33. Qh5 {[%clk 0:00:27.4]} 33... Qh6 {[%clk 0:00:18.4]}
34. Qf3 {[%clk 0:00:24.4]} 34... Re7 {[%clk 0:00:19]} 35. Be1 {[%clk 0:00:22.5]}
35... Qe6 {[%clk 0:00:18.1]} 36. Bc3 {[%clk 0:00:21]} 36... Qe3+ {[%clk
0:00:16.9]} 37. Qxe3 {[%clk 0:00:20.8]} 37... Rxe3 {[%clk 0:00:17.8]} 38. Rf3
{[%clk 0:00:19.9]} 38... Rxf3 {[%clk 0:00:18.2]} 39. gxf3 {[%clk 0:00:20.5]}
39... b5 {[%clk 0:00:17.3]} 40. Kf2 {[%clk 0:00:19.7]} 40... Kh7 {[%clk
0:00:16.6]} 41. Ke3 {[%clk 0:00:19.3]} 41... d5 {[%clk 0:00:17.2]} 42. Bf6
{[%clk 0:00:17.7]} 42... Kg6 {[%clk 0:00:16.8]} 43. Be7 {[%clk 0:00:17.9]} 43...
c4 {[%clk 0:00:17.3]} 44. bxc4 {[%clk 0:00:18.1]} 44... dxc4 {[%clk 0:00:18]}
45. Kd4 {[%clk 0:00:16.3]} 45... Kf5 {[%clk 0:00:17.2]} 46. a5 {[%clk
0:00:12.8]} 46... Ne5 {[%clk 0:00:16.3]} 47. Bb4 {[%clk 0:00:09.4]} 47... Nc6+
{[%clk 0:00:16.3]} 48. Kc5 {[%clk 0:00:09.9]} 48... Nxb4 {[%clk 0:00:16.4]} 49.
Kxb4 {[%clk 0:00:10.6]} 49... Kf4 {[%clk 0:00:16.9]} 0-1

[Event "Early-Titled-Tuesday-Blitz-March-26-2024"]
[Site "Chess.com"]
[Date "2024.03.26"]
[Round "1"]
[White "kids2010"]
[Black "gummigisla"]
[Result "1-0"]
[WhiteElo "2792"]
[BlackElo "2439"]
[TimeControl "180+1"]
[EndTime "8:07:48 PDT"]
[Termination "kids2010 won by resignation"]

1. e4 {[%clk 0:03:00.9]} 1... c5 {[%clk 0:02:56.7]} 2. Nc3 {[%clk 0:02:58.1]}
2... g6 {[%clk 0:02:55.4]} 3. g3 {[%clk 0:02:51.8]} 3... Bg7 {[%clk 0:02:55.6]}
4. Bg2 {[%clk 0:02:47.1]} 4... Nc6 {[%clk 0:02:53.9]} 5. Nge2 {[%clk 0:02:43]}
5... Rb8 {[%clk 0:02:50.2]} 6. a4 {[%clk 0:02:40.9]} 6... b6 {[%clk 0:02:48.5]}
7. O-O {[%clk 0:02:39.7]} 7... a6 {[%clk 0:02:47.2]} 8. d3 {[%clk 0:02:37.6]}
8... d6 {[%clk 0:02:43.2]} 9. Be3 {[%clk 0:02:36.4]} 9... e5 {[%clk 0:02:40.7]}
10. Nd5 {[%clk 0:02:36]} 10... h6 {[%clk 0:02:27.9]} 11. c3 {[%clk 0:02:34.5]}
11... Nge7 {[%clk 0:02:26.2]} 12. d4 {[%clk 0:02:26.7]} 12... O-O {[%clk
0:02:11.3]} 13. Qd2 {[%clk 0:02:23.9]} 13... Kh7 {[%clk 0:02:08.5]} 14. Rfd1
{[%clk 0:02:23.7]} 14... Nxd5 {[%clk 0:02:00.8]} 15. exd5 {[%clk 0:02:19]} 15...
Na5 {[%clk 0:01:59.3]} 16. Qe1 {[%clk 0:02:07.4]} 16... Bg4 {[%clk 0:01:49.3]}
17. dxe5 {[%clk 0:01:51.5]} 17... dxe5 {[%clk 0:01:44.9]} 18. h3 {[%clk
0:01:50.4]} 18... Bd7 {[%clk 0:01:41.2]} 19. b4 {[%clk 0:01:40.4]} 19... Nc4
{[%clk 0:01:37.4]} 20. bxc5 {[%clk 0:01:27]} 20... Nxe3 {[%clk 0:01:36]} 21.
fxe3 {[%clk 0:01:27.9]} 21... bxc5 {[%clk 0:01:35.7]} 22. Qd2 {[%clk 0:01:21.5]}
22... h5 {[%clk 0:01:31.9]} 23. d6 {[%clk 0:01:18.5]} 23... Bh6 {[%clk
0:01:29.2]} 24. c4 {[%clk 0:01:09.5]} 24... Rb3 {[%clk 0:01:26.7]} 25. Nc3
{[%clk 0:01:09.7]} 25... Qa5 {[%clk 0:01:25.1]} 26. Rac1 {[%clk 0:01:10.3]}
26... f5 {[%clk 0:01:09.2]} 27. Rc2 {[%clk 0:00:59.3]} 27... e4 {[%clk
0:01:07.4]} 28. Kh2 {[%clk 0:00:49.4]} 28... Qb4 {[%clk 0:01:05.8]} 29. Bf1
{[%clk 0:00:38.2]} 29... Bg7 {[%clk 0:01:00.4]} 30. Nd5 {[%clk 0:00:37.7]} 30...
Qxd2+ {[%clk 0:00:58.7]} 31. Rcxd2 {[%clk 0:00:37]} 31... Be5 {[%clk 0:00:57.5]}
32. h4 {[%clk 0:00:34.9]} 32... Bxa4 {[%clk 0:00:53.6]} 33. Ra2 {[%clk
0:00:22.6]} 33... Rb2+ {[%clk 0:00:40.8]} 34. Rxb2 {[%clk 0:00:21]} 34... Bxd1
{[%clk 0:00:40.5]} 35. Rb7+ {[%clk 0:00:20.2]} 35... Kh6 {[%clk 0:00:39.5]} 36.
d7 {[%clk 0:00:20.6]} 36... Ba4 {[%clk 0:00:36.5]} 37. Be2 {[%clk 0:00:19.6]}
37... Bc6 {[%clk 0:00:35]} 38. Ra7 {[%clk 0:00:18.9]} 38... Rd8 {[%clk
0:00:32.5]} 39. Nb6 {[%clk 0:00:18.3]} 39... Bb8 {[%clk 0:00:27.6]} 40. Rxa6
{[%clk 0:00:18.3]} 40... Bxd7 {[%clk 0:00:26.5]} 41. Nd5 {[%clk 0:00:15.1]}
41... Be8 {[%clk 0:00:23.7]} 42. Kg2 {[%clk 0:00:13.5]} 42... Bd6 {[%clk
0:00:20.9]} 43. Kf2 {[%clk 0:00:12.6]} 43... Bf7 {[%clk 0:00:20.6]} 44. Nf4
{[%clk 0:00:09.2]} 44... Bxf4 {[%clk 0:00:19.7]} 45. gxf4 {[%clk 0:00:10.1]}
45... Rd2 {[%clk 0:00:19]} 46. Ra4 {[%clk 0:00:10.4]} 46... Rc2 {[%clk
0:00:18.3]} 47. Ke1 {[%clk 0:00:10.7]} 47... Be8 {[%clk 0:00:15.9]} 48. Ra5
{[%clk 0:00:10]} 48... Rc3 {[%clk 0:00:14]} 49. Kd2 {[%clk 0:00:09.7]} 49... Bf7
{[%clk 0:00:11.4]} 50. Kxc3 {[%clk 0:00:09.6]} 1-0

[Event "Early-Titled-Tuesday-Blitz-March-26-2024"]
[Site "Chess.com"]
[Date "2024.03.26"]
[Round "1"]
[White "Yaacovn"]
[Black "Juicy_Fork"]
[Result "1-0"]
[WhiteElo "2909"]
[BlackElo "2504"]
[TimeControl "180+1"]
[EndTime "8:07:50 PDT"]
[Termination "Yaacovn won by resignation"]

1. d4 {[%clk 0:03:00]} 1... Nf6 {[%clk 0:02:59.4]} 2. e3 {[%clk 0:02:59.6]} 2...
e6 {[%clk 0:02:52.7]} 3. Bd3 {[%clk 0:02:59.4]} 3... d5 {[%clk 0:02:51.5]} 4.
Nd2 {[%clk 0:02:54.2]} 4... Be7 {[%clk 0:02:49.1]} 5. f4 {[%clk 0:02:52.5]} 5...
O-O {[%clk 0:02:46.7]} 6. Ngf3 {[%clk 0:02:50.4]} 6... c5 {[%clk 0:02:44.9]} 7.
c3 {[%clk 0:02:50.4]} 7... Nc6 {[%clk 0:02:43.5]} 8. O-O {[%clk 0:02:49.5]} 8...
Ng4 {[%clk 0:02:30.6]} 9. Ng5 {[%clk 0:02:39.4]} 9... Bxg5 {[%clk 0:02:24.5]}
10. Qxg4 {[%clk 0:02:39.2]} 10... Bf6 {[%clk 0:02:21.3]} 11. Qe2 {[%clk
0:02:34.2]} 11... cxd4 {[%clk 0:02:13.7]} 12. exd4 {[%clk 0:02:30.2]} 12... g6
{[%clk 0:02:05.9]} 13. Nf3 {[%clk 0:02:18.4]} 13... Bg7 {[%clk 0:02:03.3]} 14.
Be3 {[%clk 0:02:13.5]} 14... Bd7 {[%clk 0:01:55]} 15. Bf2 {[%clk 0:02:04.2]}
15... a6 {[%clk 0:01:46.2]} 16. Rae1 {[%clk 0:01:54.2]} 16... b5 {[%clk
0:01:43.2]} 17. Ne5 {[%clk 0:01:53.6]} 17... b4 {[%clk 0:01:38.9]} 18. Rc1
{[%clk 0:01:45]} 18... bxc3 {[%clk 0:01:26.5]} 19. Rxc3 {[%clk 0:01:44.8]} 19...
Nb4 {[%clk 0:01:23.2]} 20. Ra1 {[%clk 0:01:41.7]} 20... Nxd3 {[%clk 0:01:15.4]}
21. Nxd3 {[%clk 0:01:40.1]} 21... Bb5 {[%clk 0:01:14]} 22. Qd2 {[%clk 0:01:40]}
22... Bxd3 {[%clk 0:01:12.9]} 23. Qxd3 {[%clk 0:01:39.3]} 23... Qb6 {[%clk
0:01:12.6]} 24. b3 {[%clk 0:01:38]} 24... a5 {[%clk 0:01:04.8]} 25. Rb1 {[%clk
0:01:30.4]} 25... a4 {[%clk 0:00:56.7]} 26. b4 {[%clk 0:01:21]} 26... Rfc8
{[%clk 0:00:55.3]} 27. Rc5 {[%clk 0:01:20.4]} 27... Bf8 {[%clk 0:00:48.7]} 28.
a3 {[%clk 0:01:20.4]} 28... Qb8 {[%clk 0:00:24.6]} 29. Rbc1 {[%clk 0:01:19.2]}
29... Rxc5 {[%clk 0:00:23.9]} 30. dxc5 {[%clk 0:01:17.6]} 30... Qxf4 {[%clk
0:00:22.9]} 31. Rf1 {[%clk 0:01:17.3]} 31... Bg7 {[%clk 0:00:20.4]} 32. Be3
{[%clk 0:00:43.8]} 32... Qh4 {[%clk 0:00:14.5]} 33. c6 {[%clk 0:00:42.4]} 33...
Be5 {[%clk 0:00:14.4]} 34. h3 {[%clk 0:00:32.2]} 34... Qg3 {[%clk 0:00:10.8]}
35. Rf3 {[%clk 0:00:32.1]} 35... Qh2+ {[%clk 0:00:07.9]} 36. Kf2 {[%clk
0:00:31.7]} 36... Qh1 {[%clk 0:00:08.2]} 37. Qf1 {[%clk 0:00:30.1]} 37... Qh2
{[%clk 0:00:06.4]} 38. Ke2 {[%clk 0:00:27.2]} 38... d4 {[%clk 0:00:06.3]} 39.
Bg1 {[%clk 0:00:25.6]} 39... Qh1 {[%clk 0:00:05.4]} 40. Kd3 {[%clk 0:00:23.6]}
40... Rc8 {[%clk 0:00:04.4]} 41. b5 {[%clk 0:00:23.4]} 41... Rb8 {[%clk
0:00:04.9]} 42. Bxd4 {[%clk 0:00:22.6]} 42... Qh2 {[%clk 0:00:03.7]} 43. Bg1
{[%clk 0:00:21.7]} 43... Qh1 {[%clk 0:00:03.1]} 44. Kc4 {[%clk 0:00:21.8]} 44...
f6 {[%clk 0:00:02.1]} 45. Ba7 {[%clk 0:00:21.4]} 45... Qh2 {[%clk 0:00:01.4]}
46. Bxb8 {[%clk 0:00:21.1]} 46... Bxb8 {[%clk 0:00:01.9]} 47. Rxf6 {[%clk
0:00:21]} 47... Qe5 {[%clk 0:00:02.2]} 48. Rf8+ {[%clk 0:00:21]} 48... Kg7
{[%clk 0:00:02.8]} 49. Qf7+ {[%clk 0:00:20.8]} 49... Kh6 {[%clk 0:00:03.3]} 50.
Qf4+ {[%clk 0:00:21.2]} 50... Qxf4+ {[%clk 0:00:03.3]} 51. Rxf4 {[%clk
0:00:22.1]} 51... Bxf4 {[%clk 0:00:03.8]} 52. b6 {[%clk 0:00:22.6]} 52... e5
{[%clk 0:00:02.8]} 53. c7 {[%clk 0:00:22.6]} 53... e4 {[%clk 0:00:03.7]} 54.
c8=Q {[%clk 0:00:22.6]} 1-0

[Event "Early-Titled-Tuesday-Blitz-March-26-2024"]
[Site "Chess.com"]
[Date "2024.03.26"]
[Round "1"]
[White "amiralfio"]
[Black "DmitriiZakurdaev"]
[Result "1-0"]
[WhiteElo "2739"]
[BlackElo "2403"]
[TimeControl "180+1"]
[EndTime "8:07:51 PDT"]
[Termination "amiralfio won by resignation"]

1. d4 {[%clk 0:03:00.9]} 1... d5 {[%clk 0:02:59.4]} 2. Bf4 {[%clk 0:02:52.4]}
2... Nf6 {[%clk 0:02:59]} 3. e3 {[%clk 0:02:52.9]} 3... e6 {[%clk 0:02:59]} 4.
Nf3 {[%clk 0:02:53.4]} 4... Bd6 {[%clk 0:02:59.2]} 5. Bg3 {[%clk 0:02:54.2]}
5... O-O {[%clk 0:02:59.4]} 6. Nbd2 {[%clk 0:02:54.8]} 6... c5 {[%clk
0:02:59.3]} 7. c3 {[%clk 0:02:54.6]} 7... b6 {[%clk 0:02:59.3]} 8. Ne5 {[%clk
0:02:52.7]} 8... Qc7 {[%clk 0:02:58.7]} 9. f4 {[%clk 0:02:51.3]} 9... Ba6 {[%clk
0:02:57.6]} 10. Bxa6 {[%clk 0:02:51.2]} 10... Nxa6 {[%clk 0:02:58.5]} 11. O-O
{[%clk 0:02:51.7]} 11... Nb8 {[%clk 0:02:54.9]} 12. Bh4 {[%clk 0:02:46]} 12...
Ne8 {[%clk 0:02:54.1]} 13. Rf3 {[%clk 0:02:40.8]} 13... f6 {[%clk 0:02:51.7]}
14. Nd3 {[%clk 0:02:40.6]} 14... c4 {[%clk 0:02:51.9]} 15. Nf2 {[%clk
0:02:40.7]} 15... f5 {[%clk 0:02:46.4]} 16. Rh3 {[%clk 0:02:35.6]} 16... Nd7
{[%clk 0:02:45.9]} 17. g4 {[%clk 0:02:33.5]} 17... Nef6 {[%clk 0:02:42.5]} 18.
Bxf6 {[%clk 0:02:20.6]} 18... Nxf6 {[%clk 0:02:40]} 19. g5 {[%clk 0:02:19.6]}
19... Ne4 {[%clk 0:02:37.7]} 20. Ndxe4 {[%clk 0:02:10.7]} 20... fxe4 {[%clk
0:02:36.6]} 21. Qh5 {[%clk 0:01:54.8]} 21... g6 {[%clk 0:02:36.6]} 22. Qh4
{[%clk 0:01:55.2]} 22... Be7 {[%clk 0:02:15.7]} 23. Ng4 {[%clk 0:01:54.8]} 23...
h5 {[%clk 0:02:15.7]} 24. Ne5 {[%clk 0:01:46.9]} 24... Rf7 {[%clk 0:00:46.2]}
25. Nxg6 {[%clk 0:01:44]} 25... Rh7 {[%clk 0:00:46.8]} 26. Nxe7+ {[%clk
0:01:00.2]} 26... Qxe7 {[%clk 0:00:47.7]} 27. g6 {[%clk 0:01:00.6]} 27... Qg7
{[%clk 0:00:48.1]} 28. Kh1 {[%clk 0:01:01.1]} 28... Rh6 {[%clk 0:00:48.4]} 29.
Rg1 {[%clk 0:00:57.9]} 29... Rf8 {[%clk 0:00:48.5]} 30. Qg5 {[%clk 0:00:45]}
30... Rf5 {[%clk 0:00:43.2]} 31. Qd8+ {[%clk 0:00:42.3]} 31... Rf8 {[%clk
0:00:43.2]} 32. Qd6 {[%clk 0:00:41.3]} 32... Rf6 {[%clk 0:00:40.5]} 33. Qb8+
{[%clk 0:00:18]} 33... Rf8 {[%clk 0:00:40.2]} 34. Qe5 {[%clk 0:00:18.4]} 34...
Rf6 {[%clk 0:00:39.5]} 35. Rhg3 {[%clk 0:00:17.5]} 35... Rhxg6 {[%clk
0:00:31.9]} 36. Qxh5 {[%clk 0:00:12.5]} 36... Kf7 {[%clk 0:00:23.1]} 37. Rxg6
{[%clk 0:00:09.3]} 37... Rxg6 {[%clk 0:00:24]} 38. Rxg6 {[%clk 0:00:09.7]} 38...
Qxg6 {[%clk 0:00:24.9]} 39. Qxg6+ {[%clk 0:00:10]} 39... Kxg6 {[%clk 0:00:25.8]}
40. Kg2 {[%clk 0:00:10.6]} 40... Kh6 {[%clk 0:00:22.7]} 41. Kg3 {[%clk
0:00:10.5]} 41... Kh5 {[%clk 0:00:19.6]} 42. Kh3 {[%clk 0:00:10.9]} 42... Kh6
{[%clk 0:00:19.7]} 43. Kg4 {[%clk 0:00:11.2]} 43... Kg6 {[%clk 0:00:20.2]} 44.
h4 {[%clk 0:00:11.1]} 44... Kh6 {[%clk 0:00:16.3]} 45. h5 {[%clk 0:00:11.4]}
45... Kh7 {[%clk 0:00:15.4]} 46. Kg5 {[%clk 0:00:11.7]} 46... Kg7 {[%clk
0:00:16.3]} 47. f5 {[%clk 0:00:11]} 47... exf5 {[%clk 0:00:15.6]} 48. Kxf5
{[%clk 0:00:11.9]} 48... Kh6 {[%clk 0:00:16.5]} 49. Ke5 {[%clk 0:00:12.2]} 49...
Kxh5 {[%clk 0:00:17]} 50. Kxd5 {[%clk 0:00:12.8]} 50... Kg4 {[%clk 0:00:17.9]}
51. Kxe4 {[%clk 0:00:13.1]} 1-0